[Event "Late-Titled-Tuesday-Blitz-October-10-2023"]
[Site "Chess.com"]
[Date "2023.10.10"]
[Round "2"]
[White "tylityli"]
[Black "HajiyevKanan"]
[Result "1-0"]
[WhiteElo "2356"]
[BlackElo "2566"]
[TimeControl "180+1"]
[EndTime "14:16:11 PDT"]
[Termination "tylityli won by resignation"]

1. d4 {[%clk 0:02:59.1]} 1... d5 {[%clk 0:02:59.9]} 2. c4 {[%clk 0:02:59.2]}
2... c6 {[%clk 0:03:00.8]} 3. cxd5 {[%clk 0:02:59.1]} 3... cxd5 {[%clk
0:03:01.7]} 4. Bf4 {[%clk 0:02:59.6]} 4... Nf6 {[%clk 0:03:02.6]} 5. e3 {[%clk
0:02:59.4]} 5... Nc6 {[%clk 0:03:03.3]} 6. Nc3 {[%clk 0:02:59.7]} 6... a6 {[%clk
0:03:03.4]} 7. Rc1 {[%clk 0:02:59.9]} 7... Bg4 {[%clk 0:03:03.4]} 8. f3 {[%clk
0:02:57]} 8... Bf5 {[%clk 0:03:03.2]} 9. g4 {[%clk 0:02:57.1]} 9... Bg6 {[%clk
0:02:54.6]} 10. h4 {[%clk 0:02:51.1]} 10... h5 {[%clk 0:02:44.1]} 11. g5 {[%clk
0:02:50.6]} 11... Ng8 {[%clk 0:02:44.4]} 12. Qb3 {[%clk 0:02:48]} 12... e6
{[%clk 0:02:42]} 13. Qxb7 {[%clk 0:02:44.9]} 13... Na5 {[%clk 0:02:42.3]} 14.
Qc7 {[%clk 0:02:44.8]} 14... Rc8 {[%clk 0:02:32]} 15. Qxd8+ {[%clk 0:02:43.5]}
15... Kxd8 {[%clk 0:02:32.9]} 16. Kd2 {[%clk 0:02:37]} 16... Nc4+ {[%clk
0:02:31.4]} 17. Bxc4 {[%clk 0:02:36.1]} 17... Rxc4 {[%clk 0:02:32.1]} 18. Nge2
{[%clk 0:02:33.9]} 18... Bb4 {[%clk 0:02:32]} 19. a3 {[%clk 0:02:33.6]} 19...
Ba5 {[%clk 0:02:25.4]} 20. b4 {[%clk 0:02:33.1]} 20... Bb6 {[%clk 0:02:14.3]}
21. Na4 {[%clk 0:02:30.8]} 21... Ba7 {[%clk 0:02:10.4]} 22. Rxc4 {[%clk
0:02:25.5]} 22... dxc4 {[%clk 0:02:11.3]} 23. e4 {[%clk 0:02:25.5]} 23... Ne7
{[%clk 0:02:10.3]} 24. Rc1 {[%clk 0:02:24.1]} 24... Kd7 {[%clk 0:02:05.5]} 25.
Rxc4 {[%clk 0:02:22.6]} 25... Rc8 {[%clk 0:02:03.8]} 26. Rxc8 {[%clk 0:02:21.7]}
26... Kxc8 {[%clk 0:02:04.4]} 27. Be5 {[%clk 0:02:20.2]} 27... f6 {[%clk
0:01:55.1]} 28. gxf6 {[%clk 0:02:19.8]} 28... gxf6 {[%clk 0:01:56]} 29. Bxf6
{[%clk 0:02:19.9]} 29... Nc6 {[%clk 0:01:56.9]} 30. Kc3 {[%clk 0:02:16.3]} 30...
Be8 {[%clk 0:01:55.2]} 31. Nc5 {[%clk 0:02:15.1]} 31... Bxc5 {[%clk 0:01:54.5]}
32. dxc5 {[%clk 0:02:10.5]} 32... e5 {[%clk 0:01:54.9]} 33. f4 {[%clk
0:02:04.9]} 33... exf4 {[%clk 0:01:51]} 34. Nxf4 {[%clk 0:02:03.7]} 34... Kd7
{[%clk 0:01:51.7]} 35. Kc4 {[%clk 0:01:56.2]} 35... Bf7+ {[%clk 0:01:51.6]} 36.
Nd5 {[%clk 0:01:55.9]} 36... Ke6 {[%clk 0:01:48]} 37. Bc3 {[%clk 0:01:53.5]}
37... Kd7 {[%clk 0:01:25.4]} 38. a4 {[%clk 0:01:49.8]} 38... Ne7 {[%clk
0:01:22.6]} 39. b5 {[%clk 0:01:47.9]} 39... axb5+ {[%clk 0:01:23.5]} 40. axb5
{[%clk 0:01:47.7]} 40... Ng6 {[%clk 0:01:24.4]} 41. Bf6 {[%clk 0:01:45.8]} 41...
Nf4 {[%clk 0:01:24.9]} 42. Kd4 {[%clk 0:01:42.3]} 42... Ne6+ {[%clk 0:01:24.5]}
43. Kc4 {[%clk 0:01:41]} 43... Nf4 {[%clk 0:01:25.2]} 44. Bg5 {[%clk 0:01:34]}
44... Ne6 {[%clk 0:01:19.7]} 45. Kb4 {[%clk 0:01:31.4]} 45... Nxg5 {[%clk
0:01:16.9]} 46. hxg5 {[%clk 0:01:31.3]} 46... h4 {[%clk 0:01:17.8]} 47. Nf4
{[%clk 0:01:29.9]} 47... Be6 {[%clk 0:01:10]} 48. e5 {[%clk 0:01:27.9]} 48... h3
{[%clk 0:01:09]} 49. Nxh3 {[%clk 0:01:27.4]} 49... Bxh3 {[%clk 0:01:09.9]} 50.
g6 {[%clk 0:01:26.5]} 50... Be6 {[%clk 0:01:05.9]} 51. c6+ {[%clk 0:01:25.6]}
51... Kc7 {[%clk 0:01:06]} 52. Kc5 {[%clk 0:01:25.5]} 52... Bf5 {[%clk
0:01:06.6]} 53. b6+ {[%clk 0:01:25.4]} 53... Kc8 {[%clk 0:01:06.6]} 54. g7
{[%clk 0:01:25.5]} 54... Be6 {[%clk 0:01:05.8]} 55. Kd6 {[%clk 0:01:25.4]} 55...
Bg8 {[%clk 0:01:05.3]} 56. e6 {[%clk 0:01:25.6]} 56... Kd8 {[%clk 0:01:03.8]}
57. e7+ {[%clk 0:01:25.1]} 57... Ke8 {[%clk 0:01:03.7]} 58. b7 {[%clk
0:01:25.1]} 1-0

[Event "Late-Titled-Tuesday-Blitz-October-10-2023"]
[Site "Chess.com"]
[Date "2023.10.10"]
[Round "2"]
[White "Squirlolz"]
[Black "Gravity_Chess"]
[Result "0-1"]
[WhiteElo "2567"]
[BlackElo "2880"]
[TimeControl "180+1"]
[EndTime "14:16:17 PDT"]
[Termination "Gravity_Chess won by resignation"]

1. e4 {[%clk 0:03:00.9]} 1... c5 {[%clk 0:02:59.4]} 2. d3 {[%clk 0:02:55.6]}
2... d5 {[%clk 0:02:57.1]} 3. Be2 {[%clk 0:02:55]} 3... dxe4 {[%clk 0:02:56]} 4.
dxe4 {[%clk 0:02:55.9]} 4... Qxd1+ {[%clk 0:02:56.6]} 5. Bxd1 {[%clk 0:02:56.8]}
5... Nc6 {[%clk 0:02:57.2]} 6. f4 {[%clk 0:02:57.3]} 6... b6 {[%clk 0:02:57.2]}
7. Nf3 {[%clk 0:02:57.5]} 7... Bb7 {[%clk 0:02:57.7]} 8. c3 {[%clk 0:02:56.7]}
8... Nf6 {[%clk 0:02:57.8]} 9. Bc2 {[%clk 0:02:56.4]} 9... e6 {[%clk 0:02:57.5]}
10. Be3 {[%clk 0:02:56.2]} 10... Be7 {[%clk 0:02:56.2]} 11. Nbd2 {[%clk
0:02:56.5]} 11... h6 {[%clk 0:02:54]} 12. a4 {[%clk 0:02:56.6]} 12... O-O-O
{[%clk 0:02:44.1]} 13. Nc4 {[%clk 0:02:55.2]} 13... Ng4 {[%clk 0:02:34.4]} 14.
Bd2 {[%clk 0:02:52.5]} 14... Ba6 {[%clk 0:02:34.1]} 15. Ne3 {[%clk 0:02:48.5]}
15... Rxd2 {[%clk 0:02:27.4]} 16. Kxd2 {[%clk 0:02:23.1]} 16... Rd8+ {[%clk
0:02:27.2]} 17. Nd5 {[%clk 0:02:18.2]} 17... exd5 {[%clk 0:02:17.5]} 18. exd5
{[%clk 0:02:19.1]} 18... Rxd5+ {[%clk 0:02:18]} 19. Kc1 {[%clk 0:02:18.8]} 19...
Kc7 {[%clk 0:02:13.1]} 20. Be4 {[%clk 0:02:14.3]} 20... Rd8 {[%clk 0:02:06.1]}
21. Re1 {[%clk 0:02:13.3]} 21... Bd6 {[%clk 0:02:00.8]} 22. g3 {[%clk
0:02:10.2]} 22... Na5 {[%clk 0:01:59.8]} 23. Kc2 {[%clk 0:02:09.1]} 23... Nf6
{[%clk 0:01:52.7]} 24. Bf5 {[%clk 0:02:04.6]} 24... g6 {[%clk 0:01:51.7]} 25.
Bh3 {[%clk 0:02:04.8]} 25... Bb7 {[%clk 0:01:41.3]} 26. Nd2 {[%clk 0:01:50.6]}
26... h5 {[%clk 0:01:41.2]} 27. Re2 {[%clk 0:01:48.6]} 27... Ng4 {[%clk
0:01:41.2]} 28. Rae1 {[%clk 0:01:48]} 28... Bc6 {[%clk 0:01:38]} 29. b3 {[%clk
0:01:46.8]} 29... c4 {[%clk 0:01:38.6]} 30. Nxc4 {[%clk 0:00:57.1]} 30... Nxc4
{[%clk 0:01:38.2]} 31. bxc4 {[%clk 0:00:58]} 31... Bxa4+ {[%clk 0:01:38.8]} 32.
Kb2 {[%clk 0:00:58.6]} 32... Bc6 {[%clk 0:01:33.5]} 33. Bg2 {[%clk 0:00:57.1]}
33... Bxg2 {[%clk 0:01:31.3]} 34. Rxg2 {[%clk 0:00:58]} 34... Nf6 {[%clk
0:01:31.8]} 35. h3 {[%clk 0:00:55.3]} 35... Nd7 {[%clk 0:01:25]} 36. Kc2 {[%clk
0:00:44.7]} 36... Nc5 {[%clk 0:01:23.9]} 37. Rf2 {[%clk 0:00:40.1]} 37... f5
{[%clk 0:01:23.1]} 38. g4 {[%clk 0:00:38.2]} 38... hxg4 {[%clk 0:01:19.2]} 39.
hxg4 {[%clk 0:00:39.1]} 39... fxg4 {[%clk 0:01:20]} 40. Rg1 {[%clk 0:00:39.3]}
40... g3 {[%clk 0:01:18]} 41. Rf3 {[%clk 0:00:29.5]} 41... Ne4 {[%clk
0:01:15.6]} 42. Re3 {[%clk 0:00:28.7]} 42... Bc5 {[%clk 0:01:15.8]} 0-1

[Event "Late-Titled-Tuesday-Blitz-October-10-2023"]
[Site "Chess.com"]
[Date "2023.10.10"]
[Round "2"]
[White "NFChess13"]
[Black "Zapateado"]
[Result "1/2-1/2"]
[WhiteElo "2635"]
[BlackElo "2352"]
[TimeControl "180+1"]
[EndTime "14:16:18 PDT"]
[Termination "Game drawn by agreement"]

1. Nc3 {[%clk 0:03:00]} 1... c5 {[%clk 0:02:57.9]} 2. Nf3 {[%clk 0:02:59.3]}
2... g6 {[%clk 0:02:57.2]} 3. d4 {[%clk 0:02:58.8]} 3... cxd4 {[%clk 0:02:58.1]}
4. Qxd4 {[%clk 0:02:59.3]} 4... Nf6 {[%clk 0:02:57.1]} 5. Bg5 {[%clk 0:02:59.8]}
5... Nc6 {[%clk 0:02:56.5]} 6. Qh4 {[%clk 0:02:59.9]} 6... Bg7 {[%clk
0:02:55.9]} 7. O-O-O {[%clk 0:03:00]} 7... h6 {[%clk 0:02:51.9]} 8. Bd2 {[%clk
0:02:59.1]} 8... g5 {[%clk 0:02:46.7]} 9. Qa4 {[%clk 0:02:58.7]} 9... d6 {[%clk
0:02:44]} 10. e4 {[%clk 0:02:58.5]} 10... Bd7 {[%clk 0:02:43.9]} 11. Qa3 {[%clk
0:02:58.2]} 11... O-O {[%clk 0:02:40.6]} 12. Bb5 {[%clk 0:02:42.9]} 12... a6
{[%clk 0:02:31.3]} 13. Bxc6 {[%clk 0:02:42.6]} 13... Bxc6 {[%clk 0:02:28]} 14.
e5 {[%clk 0:02:40.5]} 14... Ng4 {[%clk 0:02:21]} 15. exd6 {[%clk 0:02:36.6]}
15... Qxd6 {[%clk 0:02:13.6]} 16. Qxd6 {[%clk 0:02:34.7]} 16... exd6 {[%clk
0:02:14.5]} 17. Be1 {[%clk 0:02:33.2]} 17... Ne5 {[%clk 0:01:50.2]} 18. Nd5
{[%clk 0:02:27.6]} 18... Nxf3 {[%clk 0:01:45]} 19. gxf3 {[%clk 0:02:26.9]} 19...
Kh7 {[%clk 0:01:39.5]} 20. h4 {[%clk 0:02:26]} 20... gxh4 {[%clk 0:01:27.6]} 21.
Rxh4 {[%clk 0:02:26.9]} 21... Rae8 {[%clk 0:01:20.6]} 22. Bb4 {[%clk 0:02:17.1]}
22... Re2 {[%clk 0:00:57.7]} 23. Nf4 {[%clk 0:01:54.8]} 23... Rxf2 {[%clk
0:00:51]} 24. Nh5 {[%clk 0:01:54.6]} 24... Bxf3 {[%clk 0:00:43.3]} 25. Rg1
{[%clk 0:01:50.6]} 25... Bxh5 {[%clk 0:00:42.4]} 26. Rxh5 {[%clk 0:01:51.5]}
26... Re8 {[%clk 0:00:36.2]} 27. Be1 {[%clk 0:01:41.3]} 27... Rfe2 {[%clk
0:00:30.3]} 28. Bd2 {[%clk 0:01:36.3]} 28... R8e6 {[%clk 0:00:18.4]} 29. c3
{[%clk 0:01:29.2]} 29... Rg6 {[%clk 0:00:17]} 30. Rd1 {[%clk 0:01:23.7]} 30...
Rgg2 {[%clk 0:00:15.8]} 31. Rd5 {[%clk 0:01:24.1]} 31... Be5 {[%clk 0:00:15.3]}
32. Rf1 {[%clk 0:01:15.5]} 32... Kg6 {[%clk 0:00:13.6]} 33. Kd1 {[%clk
0:01:15.5]} 33... f5 {[%clk 0:00:11.1]} 34. Bc1 {[%clk 0:01:14.8]} 34... h5
{[%clk 0:00:08.2]} 1/2-1/2

[Event "Late-Titled-Tuesday-Blitz-October-10-2023"]
[Site "Chess.com"]
[Date "2023.10.10"]
[Round "2"]
[White "giomar27"]
[Black "JoakimVonAnd"]
[Result "0-1"]
[WhiteElo "2292"]
[BlackElo "2694"]
[TimeControl "180+1"]
[EndTime "14:16:19 PDT"]
[Termination "JoakimVonAnd won by resignation"]

1. e4 {[%clk 0:03:00.9]} 1... g6 {[%clk 0:02:56.9]} 2. d4 {[%clk 0:02:58.8]}
2... Bg7 {[%clk 0:02:56.9]} 3. g3 {[%clk 0:02:58.9]} 3... c6 {[%clk 0:02:54.7]}
4. Bg2 {[%clk 0:02:57.2]} 4... d5 {[%clk 0:02:55]} 5. e5 {[%clk 0:02:43.2]} 5...
c5 {[%clk 0:02:54.2]} 6. c3 {[%clk 0:02:39.7]} 6... Nc6 {[%clk 0:02:54.4]} 7.
Ne2 {[%clk 0:02:39.4]} 7... Bg4 {[%clk 0:02:53.4]} 8. Be3 {[%clk 0:02:38]} 8...
cxd4 {[%clk 0:02:39.6]} 9. cxd4 {[%clk 0:02:37.7]} 9... Bxe2 {[%clk 0:02:37.2]}
10. Qxe2 {[%clk 0:02:36.4]} 10... e6 {[%clk 0:02:37]} 11. Nc3 {[%clk 0:02:30.4]}
11... Nge7 {[%clk 0:02:36.8]} 12. O-O {[%clk 0:02:30.2]} 12... h5 {[%clk
0:02:35.2]} 13. Nb5 {[%clk 0:02:29.8]} 13... Nf5 {[%clk 0:02:33]} 14. Bh3 {[%clk
0:02:17.9]} 14... Bf8 {[%clk 0:02:23]} 15. Rfd1 {[%clk 0:02:04.1]} 15... a6
{[%clk 0:02:19.5]} 16. Nc3 {[%clk 0:02:04]} 16... Be7 {[%clk 0:02:09]} 17. Rac1
{[%clk 0:02:00.6]} 17... h4 {[%clk 0:02:09.2]} 18. Bg2 {[%clk 0:01:57.6]} 18...
hxg3 {[%clk 0:02:07.1]} 19. hxg3 {[%clk 0:01:58]} 19... Bg5 {[%clk 0:01:54.3]}
20. f4 {[%clk 0:00:57.5]} 20... Nxg3 {[%clk 0:01:46.1]} 21. Qg4 {[%clk
0:00:54.6]} 21... Nf5 {[%clk 0:01:42.1]} 22. Bf2 {[%clk 0:00:35.5]} 22... Bh4
{[%clk 0:01:42.2]} 23. Ne2 {[%clk 0:00:16.8]} 23... Bxf2+ {[%clk 0:01:36.4]} 24.
Kxf2 {[%clk 0:00:17.7]} 24... Qh4+ {[%clk 0:01:33]} 25. Qxh4 {[%clk 0:00:17.7]}
25... Rxh4 {[%clk 0:01:33.9]} 26. Rh1 {[%clk 0:00:18.1]} 26... Rxh1 {[%clk
0:01:31.1]} 27. Rxh1 {[%clk 0:00:19]} 27... Ke7 {[%clk 0:01:31.2]} 28. Rd1
{[%clk 0:00:18.9]} 28... Rh8 {[%clk 0:01:30.2]} 29. a3 {[%clk 0:00:18.1]} 29...
Rh4 {[%clk 0:01:26.9]} 30. b4 {[%clk 0:00:17]} 30... g5 {[%clk 0:01:21.9]} 31.
fxg5 {[%clk 0:00:08.2]} 31... Nfxd4 {[%clk 0:01:21.9]} 32. Nc3 {[%clk
0:00:07.2]} 32... Rf4+ {[%clk 0:01:18.5]} 33. Kg3 {[%clk 0:00:06.7]} 33... Rf5
{[%clk 0:01:18.6]} 34. Na4 {[%clk 0:00:03.3]} 34... Rxg5+ {[%clk 0:01:18.1]} 35.
Kh4 {[%clk 0:00:03.3]} 35... Rxg2 {[%clk 0:01:17.7]} 0-1

[Event "Late-Titled-Tuesday-Blitz-October-10-2023"]
[Site "Chess.com"]
[Date "2023.10.10"]
[Round "2"]
[White "borocotoajua"]
[Black "AEMEffi"]
[Result "1-0"]
[WhiteElo "2563"]
[BlackElo "2335"]
[TimeControl "180+1"]
[EndTime "14:16:19 PDT"]
[Termination "borocotoajua won by resignation"]

1. d4 {[%clk 0:02:59.9]} 1... Nf6 {[%clk 0:02:58.5]} 2. Nf3 {[%clk 0:03:00.4]}
2... d5 {[%clk 0:02:58.4]} 3. c4 {[%clk 0:03:00.7]} 3... c6 {[%clk 0:02:59.3]}
4. g3 {[%clk 0:03:00.5]} 4... g6 {[%clk 0:02:58.7]} 5. Bg2 {[%clk 0:03:00.2]}
5... Bg7 {[%clk 0:02:59.6]} 6. O-O {[%clk 0:02:59.7]} 6... O-O {[%clk
0:02:59.9]} 7. Nc3 {[%clk 0:02:58.5]} 7... Ne4 {[%clk 0:02:57.9]} 8. cxd5 {[%clk
0:02:55.8]} 8... Nxc3 {[%clk 0:02:53.5]} 9. bxc3 {[%clk 0:02:55.1]} 9... cxd5
{[%clk 0:02:54.4]} 10. Rb1 {[%clk 0:02:53.2]} 10... Nc6 {[%clk 0:02:54.2]} 11.
Bf4 {[%clk 0:02:43.7]} 11... b6 {[%clk 0:02:35.1]} 12. c4 {[%clk 0:02:32]} 12...
e6 {[%clk 0:02:21.2]} 13. cxd5 {[%clk 0:02:06.9]} 13... exd5 {[%clk 0:02:22.1]}
14. Qa4 {[%clk 0:02:06.5]} 14... Bb7 {[%clk 0:02:18.8]} 15. Rbc1 {[%clk
0:02:03.9]} 15... Rc8 {[%clk 0:02:15.3]} 16. Bh3 {[%clk 0:02:02.7]} 16... f5
{[%clk 0:02:10.7]} 17. Bg2 {[%clk 0:01:59.8]} 17... Re8 {[%clk 0:02:01.4]} 18.
e3 {[%clk 0:01:54.1]} 18... h6 {[%clk 0:01:40.1]} 19. h4 {[%clk 0:01:53.7]}
19... Kh7 {[%clk 0:01:36.2]} 20. Rc2 {[%clk 0:01:38.7]} 20... Qe7 {[%clk
0:00:56.5]} 21. Rfc1 {[%clk 0:01:36.4]} 21... Red8 {[%clk 0:00:46.1]} 22. Bf1
{[%clk 0:01:19.8]} 22... Bf6 {[%clk 0:00:45.5]} 23. Bb5 {[%clk 0:01:15.2]} 23...
g5 {[%clk 0:00:39.5]} 24. hxg5 {[%clk 0:01:13.1]} 24... hxg5 {[%clk 0:00:40.4]}
25. Bxg5 {[%clk 0:01:01.5]} 25... Bxg5 {[%clk 0:00:41.3]} 26. Bxc6 {[%clk
0:01:01.8]} 26... Bxc6 {[%clk 0:00:27.3]} 27. Rxc6 {[%clk 0:01:02.7]} 27... Rxc6
{[%clk 0:00:22.6]} 28. Qxc6 {[%clk 0:01:01.4]} 28... Bxe3 {[%clk 0:00:20.2]} 29.
Re1 {[%clk 0:01:00.1]} 29... Bxf2+ {[%clk 0:00:18.1]} 30. Kxf2 {[%clk 0:01:01]}
30... Qg7 {[%clk 0:00:17.4]} 31. Rh1+ {[%clk 0:00:59.7]} 31... Kg8 {[%clk
0:00:15.5]} 32. Qe6+ {[%clk 0:00:59.7]} 1-0

[Event "Late-Titled-Tuesday-Blitz-October-10-2023"]
[Site "Chess.com"]
[Date "2023.10.10"]
[Round "2"]
[White "Ykow"]
[Black "nitpicker"]
[Result "1-0"]
[WhiteElo "2508"]
[BlackElo "2266"]
[TimeControl "180+1"]
[EndTime "14:16:19 PDT"]
[Termination "Ykow won on time"]

1. c4 {[%clk 0:02:59.1]} 1... e5 {[%clk 0:01:29]} 2. Nf3 {[%clk 0:02:57.6]} 2...
Nc6 {[%clk 0:01:25.7]} 3. Nc3 {[%clk 0:02:56.9]} 3... f5 {[%clk 0:01:20.9]} 4.
d4 {[%clk 0:02:54.6]} 4... e4 {[%clk 0:01:20.8]} 5. Ng5 {[%clk 0:02:51.3]} 5...
Nf6 {[%clk 0:01:17.9]} 6. h4 {[%clk 0:02:49.4]} 6... Bb4 {[%clk 0:01:14.7]} 7.
e3 {[%clk 0:02:48.4]} 7... O-O {[%clk 0:01:14.3]} 8. a3 {[%clk 0:02:48.2]} 8...
Bxc3+ {[%clk 0:01:13.8]} 9. bxc3 {[%clk 0:02:49.1]} 9... Qe7 {[%clk 0:01:11.5]}
10. Be2 {[%clk 0:02:46.5]} 10... d6 {[%clk 0:01:11.4]} 11. Rb1 {[%clk
0:02:45.4]} 11... b6 {[%clk 0:01:10.6]} 12. Nh3 {[%clk 0:02:43.4]} 12... Ba6
{[%clk 0:01:09.1]} 13. Nf4 {[%clk 0:02:43.4]} 13... Na5 {[%clk 0:01:08.7]} 14.
c5 {[%clk 0:02:43.6]} 14... Bxe2 {[%clk 0:01:03.9]} 15. Qxe2 {[%clk 0:02:44.5]}
15... Qf7 {[%clk 0:01:02.7]} 16. a4 {[%clk 0:02:41.8]} 16... Qc4 {[%clk
0:00:59.5]} 17. Qxc4+ {[%clk 0:02:35]} 17... Nxc4 {[%clk 0:00:59.1]} 18. Ne6
{[%clk 0:02:35.9]} 18... Rf7 {[%clk 0:00:57.8]} 19. cxd6 {[%clk 0:02:34.1]}
19... cxd6 {[%clk 0:00:56.9]} 20. Rb4 {[%clk 0:02:34.4]} 20... d5 {[%clk
0:00:53.9]} 21. Ke2 {[%clk 0:02:34.2]} 21... Re8 {[%clk 0:00:50.8]} 22. Nf4
{[%clk 0:02:33.7]} 22... Rc7 {[%clk 0:00:50.1]} 23. Bd2 {[%clk 0:02:33.2]} 23...
Rec8 {[%clk 0:00:48]} 24. Rc1 {[%clk 0:02:32.9]} 24... Kf7 {[%clk 0:00:47.4]}
25. Be1 {[%clk 0:02:31]} 25... g6 {[%clk 0:00:47.3]} 26. Rb5 {[%clk 0:02:30.8]}
26... Na3 {[%clk 0:00:39.9]} 27. Rb3 {[%clk 0:02:28.3]} 27... Nc4 {[%clk
0:00:40]} 28. Ra1 {[%clk 0:02:27.9]} 28... a6 {[%clk 0:00:37.9]} 29. f3 {[%clk
0:02:25.3]} 29... h6 {[%clk 0:00:37.5]} 30. Nh3 {[%clk 0:02:16.7]} 30... Rg8
{[%clk 0:00:31.4]} 31. Bg3 {[%clk 0:02:11.4]} 31... Rc6 {[%clk 0:00:29.3]} 32.
Bf4 {[%clk 0:02:10]} 32... Rh8 {[%clk 0:00:20.2]} 33. Nf2 {[%clk 0:02:09.5]}
33... Nh5 {[%clk 0:00:19.9]} 34. Bh2 {[%clk 0:02:08.9]} 34... g5 {[%clk
0:00:20.1]} 35. g4 {[%clk 0:02:05.6]} 35... Nf6 {[%clk 0:00:16.5]} 36. gxf5
{[%clk 0:02:01.7]} 36... gxh4 {[%clk 0:00:15.3]} 37. fxe4 {[%clk 0:02:01.1]}
37... Nxe4 {[%clk 0:00:14]} 38. Nxe4 {[%clk 0:01:59.8]} 38... dxe4 {[%clk
0:00:14.7]} 39. Rh1 {[%clk 0:01:58.4]} 39... Rg8 {[%clk 0:00:14.3]} 40. Kf2
{[%clk 0:01:57.1]} 40... Rg5 {[%clk 0:00:12.7]} 41. Bf4 {[%clk 0:01:56.2]} 41...
Rxf5 {[%clk 0:00:12.4]} 42. Rxh4 {[%clk 0:01:56.6]} 42... Rg6 {[%clk 0:00:10.2]}
43. Rb4 {[%clk 0:01:55.2]} 43... Nd2 {[%clk 0:00:09.5]} 44. Rh3 {[%clk
0:01:49.8]} 44... Nf3 {[%clk 0:00:09.1]} 45. Rg3 {[%clk 0:01:50.2]} 45... Rh5
{[%clk 0:00:07]} 46. Rxg6 {[%clk 0:01:49.4]} 46... Kxg6 {[%clk 0:00:06.4]} 47.
Rxb6+ {[%clk 0:01:49.7]} 47... Kh7 {[%clk 0:00:07]} 48. Rxa6 {[%clk 0:01:49.8]}
48... Rh1 {[%clk 0:00:06.5]} 49. d5 {[%clk 0:01:49.6]} 49... Rc1 {[%clk
0:00:05.6]} 50. d6 {[%clk 0:01:49.4]} 50... Rxc3 {[%clk 0:00:04.4]} 51. d7
{[%clk 0:01:49.8]} 51... Rd3 {[%clk 0:00:04.4]} 52. Rxh6+ {[%clk 0:01:50.7]}
52... Kg7 {[%clk 0:00:03.7]} 53. Rd6 {[%clk 0:01:51.6]} 1-0

[Event "Late-Titled-Tuesday-Blitz-October-10-2023"]
[Site "Chess.com"]
[Date "2023.10.10"]
[Round "2"]
[White "Maksimus1998"]
[Black "kuli4ik"]
[Result "0-1"]
[WhiteElo "2602"]
[BlackElo "2944"]
[TimeControl "180+1"]
[EndTime "14:16:20 PDT"]
[Termination "kuli4ik won on time"]

1. d4 {[%clk 0:03:00.9]} 1... g6 {[%clk 0:02:59.4]} 2. Bf4 {[%clk 0:03:00.4]}
2... Bg7 {[%clk 0:02:59.1]} 3. e3 {[%clk 0:03:01.1]} 3... d6 {[%clk 0:02:59.7]}
4. h3 {[%clk 0:03:01.2]} 4... Nd7 {[%clk 0:02:59.9]} 5. Nf3 {[%clk 0:03:01.1]}
5... e5 {[%clk 0:02:59.8]} 6. Bh2 {[%clk 0:03:01.8]} 6... Nh6 {[%clk 0:03:00.1]}
7. c4 {[%clk 0:03:00.3]} 7... O-O {[%clk 0:03:00]} 8. Nc3 {[%clk 0:03:00.8]}
8... c6 {[%clk 0:02:53]} 9. Be2 {[%clk 0:03:00.9]} 9... Qe7 {[%clk 0:02:51.6]}
10. O-O {[%clk 0:03:00.4]} 10... f5 {[%clk 0:02:48.4]} 11. Qc2 {[%clk
0:02:53.7]} 11... Nf7 {[%clk 0:02:48]} 12. Rad1 {[%clk 0:02:52.8]} 12... e4
{[%clk 0:02:34.6]} 13. Nd2 {[%clk 0:02:52.4]} 13... Nf6 {[%clk 0:02:35]} 14. b4
{[%clk 0:02:43]} 14... Rd8 {[%clk 0:02:30.9]} 15. b5 {[%clk 0:02:42.9]} 15... c5
{[%clk 0:02:29.7]} 16. Nb3 {[%clk 0:02:17.1]} 16... Be6 {[%clk 0:02:28.3]} 17.
d5 {[%clk 0:01:56.8]} 17... Bd7 {[%clk 0:02:25.8]} 18. Qd2 {[%clk 0:01:46.9]}
18... Be8 {[%clk 0:02:21.3]} 19. Rfe1 {[%clk 0:01:45.8]} 19... Ne5 {[%clk
0:02:20.5]} 20. a4 {[%clk 0:01:21.4]} 20... g5 {[%clk 0:02:06.2]} 21. Na5 {[%clk
0:00:43.1]} 21... Rab8 {[%clk 0:02:05.2]} 22. Rb1 {[%clk 0:00:39.1]} 22... Nfd7
{[%clk 0:01:49.3]} 23. Rf1 {[%clk 0:00:22.2]} 23... Bg6 {[%clk 0:01:44.8]} 24.
Rb3 {[%clk 0:00:14.2]} 24... Rf8 {[%clk 0:01:42.9]} 25. f3 {[%clk 0:00:14.3]}
25... exf3 {[%clk 0:01:42.1]} 26. Bxf3 {[%clk 0:00:15.2]} 26... Nxf3+ {[%clk
0:01:38.7]} 27. Rxf3 {[%clk 0:00:16.1]} 27... Ne5 {[%clk 0:01:37]} 28. Rf1
{[%clk 0:00:15.7]} 28... Rbe8 {[%clk 0:01:36.9]} 29. Nd1 {[%clk 0:00:14.3]}
29... Qd7 {[%clk 0:01:31.1]} 30. b6 {[%clk 0:00:13.8]} 30... a6 {[%clk
0:01:22.1]} 31. Ra3 {[%clk 0:00:05.1]} 31... Rf7 {[%clk 0:01:20]} 32. e4 {[%clk
0:00:02.3]} 32... f4 {[%clk 0:01:15.9]} 33. Nb3 {[%clk 0:00:01.2]} 33... Nxc4
{[%clk 0:01:14.7]} 0-1